[Event "Late-Titled-Tuesday-Blitz-January-30-2024"]
[Site "Chess.com"]
[Date "2024.01.30"]
[Round "5"]
[White "Boninknights"]
[Black "melissa_guez"]
[Result "1/2-1/2"]
[WhiteElo "2416"]
[BlackElo "2253"]
[TimeControl "180+1"]
[EndTime "14:57:34 PST"]
[Termination "Game drawn by repetition"]

1. d4 {[%clk 0:02:59]} 1... d5 {[%clk 0:02:59.6]} 2. Nf3 {[%clk 0:02:55.7]} 2...
Nf6 {[%clk 0:02:59.2]} 3. c4 {[%clk 0:02:53.7]} 3... c6 {[%clk 0:02:59.1]} 4.
Qb3 {[%clk 0:02:50.6]} 4... Qb6 {[%clk 0:02:51.4]} 5. Nc3 {[%clk 0:02:48.8]}
5... Qxb3 {[%clk 0:02:34.4]} 6. axb3 {[%clk 0:02:46.5]} 6... Bf5 {[%clk
0:02:33.5]} 7. c5 {[%clk 0:02:41.1]} 7... Nbd7 {[%clk 0:02:27.8]} 8. b4 {[%clk
0:02:38]} 8... Ne4 {[%clk 0:02:15.4]} 9. Bf4 {[%clk 0:02:26.1]} 9... h6 {[%clk
0:02:08]} 10. e3 {[%clk 0:02:21.8]} 10... g5 {[%clk 0:02:07.2]} 11. Bc7 {[%clk
0:02:19.4]} 11... Bg7 {[%clk 0:02:05.3]} 12. b5 {[%clk 0:02:10.4]} 12... Nxc3
{[%clk 0:02:02]} 13. bxc3 {[%clk 0:02:07.4]} 13... cxb5 {[%clk 0:02:02.1]} 14.
Bxb5 {[%clk 0:02:05.2]} 14... O-O {[%clk 0:02:01.8]} 15. O-O {[%clk 0:01:52.6]}
15... Rfc8 {[%clk 0:02:01.2]} 16. Bg3 {[%clk 0:01:48.3]} 16... e5 {[%clk
0:01:57.7]} 17. Bxd7 {[%clk 0:01:41.5]} 17... Bxd7 {[%clk 0:01:56.2]} 18. Bxe5
{[%clk 0:01:39.1]} 18... f6 {[%clk 0:01:37.4]} 19. Bg3 {[%clk 0:01:31]} 19...
Bb5 {[%clk 0:01:36.2]} 20. Rfb1 {[%clk 0:01:28.6]} 20... a6 {[%clk 0:01:35.6]}
21. Nd2 {[%clk 0:01:24.3]} 21... h5 {[%clk 0:01:33.7]} 22. h4 {[%clk 0:01:20.1]}
22... g4 {[%clk 0:01:30.8]} 23. Rb4 {[%clk 0:01:18.2]} 23... Kf7 {[%clk
0:01:26.8]} 24. c4 {[%clk 0:01:16.4]} 24... dxc4 {[%clk 0:01:26.1]} 25. Nxc4
{[%clk 0:01:15.6]} 25... Bxc4 {[%clk 0:01:26.1]} 26. Rxc4 {[%clk 0:01:14.4]}
26... b5 {[%clk 0:01:24.7]} 27. cxb6 {[%clk 0:00:50.5]} 27... Rxc4 {[%clk
0:01:18.1]} 28. b7 {[%clk 0:00:49.6]} 28... Rcc8 {[%clk 0:01:15.4]} 29. bxc8=Q
{[%clk 0:00:43.4]} 29... Rxc8 {[%clk 0:01:15.1]} 30. Rxa6 {[%clk 0:00:42.4]}
30... f5 {[%clk 0:01:13.7]} 31. Ra7+ {[%clk 0:00:41]} 31... Kg6 {[%clk
0:01:13.9]} 32. d5 {[%clk 0:00:40.1]} 32... Bf6 {[%clk 0:01:09.2]} 33. d6 {[%clk
0:00:38.2]} 33... f4 {[%clk 0:01:06.6]} 34. Bxf4 {[%clk 0:00:37]} 34... Bxh4
{[%clk 0:01:06.1]} 35. g3 {[%clk 0:00:35.8]} 35... Bf6 {[%clk 0:01:05.1]} 36. d7
{[%clk 0:00:34.2]} 36... Rc1+ {[%clk 0:01:04.2]} 37. Kg2 {[%clk 0:00:33.3]}
37... Rd1 {[%clk 0:01:03]} 38. e4 {[%clk 0:00:32.6]} 38... h4 {[%clk 0:01:02]}
39. gxh4 {[%clk 0:00:31.3]} 39... Bxh4 {[%clk 0:01:01.7]} 40. e5 {[%clk
0:00:29.9]} 40... Rd4 {[%clk 0:01:00.2]} 41. Bg3 {[%clk 0:00:24.8]} 41... Be7
{[%clk 0:00:57.8]} 42. f4 {[%clk 0:00:20]} 42... Rd2+ {[%clk 0:00:49.8]} 43. Kf1
{[%clk 0:00:19.5]} 43... Kf5 {[%clk 0:00:47.4]} 44. Rb7 {[%clk 0:00:16.2]} 44...
Ke4 {[%clk 0:00:38.2]} 45. Ke1 {[%clk 0:00:15.5]} 45... Rg2 {[%clk 0:00:34.1]}
46. Bf2 {[%clk 0:00:14.5]} 46... Kxf4 {[%clk 0:00:30.6]} 47. Rb8 {[%clk
0:00:13]} 47... Kxe5 {[%clk 0:00:20.5]} 48. d8=Q {[%clk 0:00:10.8]} 48... Bxd8
{[%clk 0:00:20.5]} 49. Rxd8 {[%clk 0:00:10.6]} 49... g3 {[%clk 0:00:18.6]} 50.
Bxg3+ {[%clk 0:00:10.5]} 50... Rxg3 {[%clk 0:00:18.4]} 51. Rd7 {[%clk
0:00:09.1]} 51... Ra3 {[%clk 0:00:17.5]} 52. Re7+ {[%clk 0:00:08.8]} 52... Kf4
{[%clk 0:00:17.5]} 53. Rf7+ {[%clk 0:00:08.7]} 53... Ke3 {[%clk 0:00:16.9]} 54.
Re7+ {[%clk 0:00:08.9]} 54... Kf3 {[%clk 0:00:17.1]} 55. Rf7+ {[%clk 0:00:09.1]}
55... Ke3 {[%clk 0:00:16.1]} 56. Re7+ {[%clk 0:00:09.2]} 56... Kf3 {[%clk
0:00:16.2]} 57. Rf7+ {[%clk 0:00:09.3]} 57... Ke3 {[%clk 0:00:16.5]} 1/2-1/2

[Event "Late-Titled-Tuesday-Blitz-January-30-2024"]
[Site "Chess.com"]
[Date "2024.01.30"]
[Round "5"]
[White "Cambek64"]
[Black "GMG"]
[Result "0-1"]
[WhiteElo "2527"]
[BlackElo "2815"]
[TimeControl "180+1"]
[EndTime "14:57:36 PST"]
[Termination "GMG won on time"]

1. b3 {[%clk 0:02:56.3]} 1... c5 {[%clk 0:02:59.4]} 2. Bb2 {[%clk 0:02:56.6]}
2... d6 {[%clk 0:02:59.7]} 3. c4 {[%clk 0:02:53.3]} 3... e5 {[%clk 0:02:58.2]}
4. e3 {[%clk 0:02:52.8]} 4... g6 {[%clk 0:02:50.5]} 5. g3 {[%clk 0:02:49.6]}
5... Bg7 {[%clk 0:02:49.8]} 6. Bg2 {[%clk 0:02:50.2]} 6... Nc6 {[%clk
0:02:49.8]} 7. Ne2 {[%clk 0:02:50.4]} 7... Nge7 {[%clk 0:02:47.1]} 8. O-O {[%clk
0:02:50.5]} 8... h5 {[%clk 0:02:45]} 9. h3 {[%clk 0:02:49.5]} 9... Be6 {[%clk
0:02:44.7]} 10. d3 {[%clk 0:02:48.9]} 10... d5 {[%clk 0:02:36.4]} 11. cxd5
{[%clk 0:02:41.9]} 11... Bxd5 {[%clk 0:02:36.5]} 12. Nbc3 {[%clk 0:02:20.6]}
12... Bxg2 {[%clk 0:02:33.9]} 13. Kxg2 {[%clk 0:02:21]} 13... Nb4 {[%clk
0:02:27.5]} 14. Nc1 {[%clk 0:02:07.5]} 14... Qd7 {[%clk 0:02:13.4]} 15. a3
{[%clk 0:02:05.5]} 15... Nbc6 {[%clk 0:02:12.5]} 16. Qf3 {[%clk 0:01:56.8]}
16... f5 {[%clk 0:02:08.6]} 17. Rd1 {[%clk 0:01:51.7]} 17... h4 {[%clk
0:02:05.1]} 18. g4 {[%clk 0:01:49.9]} 18... O-O {[%clk 0:01:49.8]} 19. gxf5
{[%clk 0:01:44.6]} 19... Rxf5 {[%clk 0:01:45.9]} 20. Qg4 {[%clk 0:01:44.5]}
20... Raf8 {[%clk 0:01:44.9]} 21. Ne4 {[%clk 0:01:44.8]} 21... Qd5 {[%clk
0:01:30.9]} 22. Kg1 {[%clk 0:01:31.7]} 22... Nd8 {[%clk 0:01:19.9]} 23. Qxh4
{[%clk 0:01:24.5]} 23... Nec6 {[%clk 0:00:49.9]} 24. Ng5 {[%clk 0:01:18.1]}
24... Rxg5+ {[%clk 0:00:49.7]} 25. Qxg5 {[%clk 0:01:16.9]} 25... Qf7 {[%clk
0:00:50.3]} 26. Qg2 {[%clk 0:01:05.7]} 26... Ne6 {[%clk 0:00:50.1]} 27. Ne2
{[%clk 0:01:00.4]} 27... Ng5 {[%clk 0:00:50.2]} 28. f4 {[%clk 0:00:56.1]} 28...
Ne6 {[%clk 0:00:49.5]} 29. Rf1 {[%clk 0:00:53.1]} 29... Qe8 {[%clk 0:00:37.4]}
30. fxe5 {[%clk 0:00:45.3]} 30... Qd7 {[%clk 0:00:28.4]} 31. Rxf8+ {[%clk
0:00:40.9]} 31... Nxf8 {[%clk 0:00:29.3]} 32. d4 {[%clk 0:00:39.7]} 32... Ne7
{[%clk 0:00:17.5]} 33. Rf1 {[%clk 0:00:36.7]} 33... Ne6 {[%clk 0:00:16.2]} 34.
Qe4 {[%clk 0:00:33.4]} 34... cxd4 {[%clk 0:00:13.6]} 35. Nxd4 {[%clk 0:00:22.5]}
35... Ng5 {[%clk 0:00:13.7]} 36. e6 {[%clk 0:00:20.4]} 36... Qd6 {[%clk
0:00:09.6]} 37. Qg4 {[%clk 0:00:16.5]} 37... Nh7 {[%clk 0:00:09.7]} 38. Qf4
{[%clk 0:00:14.6]} 38... Qc5 {[%clk 0:00:02.4]} 39. Qf7+ {[%clk 0:00:13.5]}
39... Kh8 {[%clk 0:00:02.9]} 40. Qe8+ {[%clk 0:00:13]} 40... Ng8 {[%clk
0:00:02.8]} 41. e7 {[%clk 0:00:11.1]} 41... Qg5+ {[%clk 0:00:02.3]} 42. Kh1
{[%clk 0:00:09.8]} 42... Nf6 {[%clk 0:00:02.6]} 43. Rxf6 {[%clk 0:00:06]} 43...
Qxf6 {[%clk 0:00:01.2]} 44. Qxg8+ {[%clk 0:00:05.3]} 44... Kxg8 {[%clk
0:00:02.1]} 45. e8=Q+ {[%clk 0:00:05.2]} 45... Kh7 {[%clk 0:00:03]} 46. Qe4
{[%clk 0:00:01.4]} 46... Qf1+ {[%clk 0:00:02.1]} 0-1

[Event "Late-Titled-Tuesday-Blitz-January-30-2024"]
[Site "Chess.com"]
[Date "2024.01.30"]
[Round "5"]
[White "Vladimir_2020"]
[Black "rasmussvane"]
[Result "1-0"]
[WhiteElo "2773"]
[BlackElo "2954"]
[TimeControl "180+1"]
[EndTime "14:57:45 PST"]
[Termination "Vladimir_2020 won on time"]

1. Nf3 {[%clk 0:03:00.9]} 1... d5 {[%clk 0:02:54.8]} 2. g3 {[%clk 0:03:00]} 2...
Nf6 {[%clk 0:02:48.2]} 3. Bg2 {[%clk 0:02:59.8]} 3... e6 {[%clk 0:02:48]} 4. O-O
{[%clk 0:02:59.3]} 4... Be7 {[%clk 0:02:48.2]} 5. c4 {[%clk 0:02:56.4]} 5... O-O
{[%clk 0:02:47.7]} 6. d4 {[%clk 0:02:53]} 6... dxc4 {[%clk 0:02:44]} 7. Qc2
{[%clk 0:02:52.3]} 7... a6 {[%clk 0:02:43.7]} 8. a4 {[%clk 0:02:51.2]} 8... Bd7
{[%clk 0:02:39.5]} 9. Qxc4 {[%clk 0:02:48.9]} 9... Bc6 {[%clk 0:02:38.3]} 10.
Bf4 {[%clk 0:02:32.1]} 10... Bd6 {[%clk 0:02:36.1]} 11. Nc3 {[%clk 0:02:23.3]}
11... a5 {[%clk 0:02:24.6]} 12. Bg5 {[%clk 0:02:08]} 12... Bb4 {[%clk
0:02:05.4]} 13. Ne5 {[%clk 0:02:01.4]} 13... Bxg2 {[%clk 0:01:58.5]} 14. Kxg2
{[%clk 0:02:01.5]} 14... c6 {[%clk 0:01:36.7]} 15. Rfd1 {[%clk 0:01:54.6]} 15...
Be7 {[%clk 0:01:33.7]} 16. e4 {[%clk 0:01:51.2]} 16... Nfd7 {[%clk 0:01:26.5]}
17. Bxe7 {[%clk 0:01:41.1]} 17... Qxe7 {[%clk 0:01:27.4]} 18. Nf3 {[%clk
0:01:35.6]} 18... Na6 {[%clk 0:01:25]} 19. Rac1 {[%clk 0:01:24]} 19... Nb4
{[%clk 0:01:23.5]} 20. Qe2 {[%clk 0:01:09.5]} 20... Rfd8 {[%clk 0:01:21.2]} 21.
b3 {[%clk 0:01:01.6]} 21... Rac8 {[%clk 0:01:19.6]} 22. Na2 {[%clk 0:01:01.5]}
22... Nxa2 {[%clk 0:01:16.2]} 23. Qxa2 {[%clk 0:01:01.6]} 23... Nb8 {[%clk
0:01:16.9]} 24. Qd2 {[%clk 0:00:57.6]} 24... Qc7 {[%clk 0:01:07.1]} 25. d5
{[%clk 0:00:50.5]} 25... exd5 {[%clk 0:01:00.9]} 26. exd5 {[%clk 0:00:50.7]}
26... Rd6 {[%clk 0:00:41.1]} 27. Qf4 {[%clk 0:00:46.5]} 27... Rcd8 {[%clk
0:00:41.1]} 28. Nd4 {[%clk 0:00:32.2]} 28... Qd7 {[%clk 0:00:32.1]} 29. dxc6
{[%clk 0:00:26.4]} 29... bxc6 {[%clk 0:00:21.9]} 30. Rc4 {[%clk 0:00:17.3]}
30... g6 {[%clk 0:00:18.4]} 31. Re1 {[%clk 0:00:12.1]} 31... Rxd4 {[%clk
0:00:11.6]} 32. Rxd4 {[%clk 0:00:12.4]} 32... Qxd4 {[%clk 0:00:12.5]} 33. Qxd4
{[%clk 0:00:12.6]} 33... Rxd4 {[%clk 0:00:13.4]} 34. Re8+ {[%clk 0:00:12.7]}
34... Kg7 {[%clk 0:00:14]} 35. Rxb8 {[%clk 0:00:12.9]} 35... Rd3 {[%clk
0:00:10.4]} 36. Rb6 {[%clk 0:00:12.8]} 36... h5 {[%clk 0:00:10.2]} 37. Rxc6
{[%clk 0:00:13]} 37... Rxb3 {[%clk 0:00:09.5]} 38. Rc5 {[%clk 0:00:13.5]} 38...
Ra3 {[%clk 0:00:09.1]} 39. Rxa5 {[%clk 0:00:13.6]} 39... Kf6 {[%clk 0:00:09.5]}
40. h4 {[%clk 0:00:13.2]} 40... Ke6 {[%clk 0:00:08.2]} 41. Ra6+ {[%clk
0:00:13.4]} 41... Kf5 {[%clk 0:00:08.5]} 42. a5 {[%clk 0:00:13.6]} 42... f6
{[%clk 0:00:08.2]} 43. Ra8 {[%clk 0:00:12.8]} 43... g5 {[%clk 0:00:06.9]} 44.
hxg5 {[%clk 0:00:12.4]} 44... Kxg5 {[%clk 0:00:04.6]} 45. a6 {[%clk 0:00:12.1]}
45... Kf5 {[%clk 0:00:03.9]} 46. a7 {[%clk 0:00:08.5]} 46... Ra2 {[%clk
0:00:03.5]} 47. Kf3 {[%clk 0:00:08.6]} 47... Ra4 {[%clk 0:00:03.1]} 48. Ke3
{[%clk 0:00:08.8]} 48... Ra2 {[%clk 0:00:02.4]} 49. Kd4 {[%clk 0:00:08.9]} 49...
Ra3 {[%clk 0:00:01.8]} 50. Kc5 {[%clk 0:00:08.7]} 50... Ra2 {[%clk 0:00:01.5]}
51. Kb6 {[%clk 0:00:08]} 51... Rb2+ {[%clk 0:00:01.9]} 52. Kc6 {[%clk
0:00:08.3]} 52... Rc2+ {[%clk 0:00:02.2]} 53. Kd6 {[%clk 0:00:08.4]} 53... Ra2
{[%clk 0:00:03]} 54. f3 {[%clk 0:00:07.6]} 54... Ra3 {[%clk 0:00:01.9]} 55. Kc5
{[%clk 0:00:07.3]} 55... Ra2 {[%clk 0:00:01.3]} 56. Kc4 {[%clk 0:00:04.9]} 56...
Ra1 {[%clk 0:00:01.5]} 57. Kb3 {[%clk 0:00:04.3]} 1-0

[Event "Late-Titled-Tuesday-Blitz-January-30-2024"]
[Site "Chess.com"]
[Date "2024.01.30"]
[Round "5"]
[White "vugarrasulov"]
[Black "CarlosjPineror"]
[Result "1-0"]
[WhiteElo "2945"]
[BlackElo "2682"]
[TimeControl "180+1"]
[EndTime "14:57:46 PST"]
[Termination "vugarrasulov won by resignation"]

1. e4 {[%clk 0:03:00.9]} 1... c5 {[%clk 0:03:00.1]} 2. Nf3 {[%clk 0:03:01.2]}
2... e6 {[%clk 0:03:00.7]} 3. g3 {[%clk 0:03:00]} 3... Nc6 {[%clk 0:03:00.1]} 4.
Bg2 {[%clk 0:03:00]} 4... Nf6 {[%clk 0:02:59.5]} 5. Nc3 {[%clk 0:02:56]} 5... d6
{[%clk 0:02:57.2]} 6. d4 {[%clk 0:02:55.1]} 6... cxd4 {[%clk 0:02:56.7]} 7. Nxd4
{[%clk 0:02:56]} 7... Bd7 {[%clk 0:02:54.2]} 8. O-O {[%clk 0:02:46.8]} 8... a6
{[%clk 0:02:54]} 9. a4 {[%clk 0:02:43.3]} 9... Be7 {[%clk 0:02:53.5]} 10. Nb3
{[%clk 0:02:43.9]} 10... O-O {[%clk 0:02:53.1]} 11. a5 {[%clk 0:02:44]} 11...
Qc7 {[%clk 0:02:52.4]} 12. Be3 {[%clk 0:02:43.6]} 12... Rac8 {[%clk 0:02:52]}
13. g4 {[%clk 0:02:40.7]} 13... h6 {[%clk 0:02:47.9]} 14. f4 {[%clk 0:02:37.6]}
14... Qb8 {[%clk 0:02:46]} 15. Kh1 {[%clk 0:02:34.3]} 15... Nb4 {[%clk 0:02:35]}
16. h3 {[%clk 0:02:13.8]} 16... Bc6 {[%clk 0:02:26]} 17. Nd4 {[%clk 0:02:13.4]}
17... Bd7 {[%clk 0:02:17.4]} 18. Qd2 {[%clk 0:02:12.2]} 18... Rfd8 {[%clk
0:02:11.7]} 19. Qf2 {[%clk 0:02:04.4]} 19... Rf8 {[%clk 0:01:58.8]} 20. Rad1
{[%clk 0:01:52.5]} 20... Rc4 {[%clk 0:01:34.8]} 21. Nb3 {[%clk 0:01:45]} 21...
Qc8 {[%clk 0:01:31.7]} 22. Rfe1 {[%clk 0:01:18.7]} 22... Bc6 {[%clk 0:01:05.1]}
23. Nd4 {[%clk 0:01:17.2]} 23... Bd7 {[%clk 0:01:03]} 24. Rd2 {[%clk 0:01:13.9]}
24... Bd8 {[%clk 0:00:49.3]} 25. Nb3 {[%clk 0:01:10.9]} 25... Be7 {[%clk
0:00:48]} 26. Bb6 {[%clk 0:01:04.9]} 26... Bc6 {[%clk 0:00:43.6]} 27. Nd4 {[%clk
0:00:57]} 27... Be8 {[%clk 0:00:39.5]} 28. Bf1 {[%clk 0:00:54.1]} 28... Rxc3
{[%clk 0:00:36.2]} 29. bxc3 {[%clk 0:00:55]} 29... Nc6 {[%clk 0:00:36.7]} 30.
Bg2 {[%clk 0:00:53.5]} 30... Nd7 {[%clk 0:00:34.8]} 31. Nxc6 {[%clk 0:00:51.6]}
31... bxc6 {[%clk 0:00:33.7]} 32. Be3 {[%clk 0:00:42.1]} 32... Qd8 {[%clk
0:00:30.7]} 33. Ra1 {[%clk 0:00:38.9]} 33... Qc7 {[%clk 0:00:28.4]} 34. Bb6
{[%clk 0:00:37.7]} 34... Qc8 {[%clk 0:00:27.1]} 35. c4 {[%clk 0:00:38]} 35... c5
{[%clk 0:00:23.5]} 36. Rad1 {[%clk 0:00:38.5]} 36... Qb8 {[%clk 0:00:21.8]} 37.
e5 {[%clk 0:00:34.8]} 37... Nxb6 {[%clk 0:00:20]} 38. exd6 {[%clk 0:00:35.3]}
38... Bxd6 {[%clk 0:00:18.6]} 39. Rxd6 {[%clk 0:00:35.6]} 39... Nxc4 {[%clk
0:00:19.1]} 40. Rd8 {[%clk 0:00:35.4]} 40... Qb4 {[%clk 0:00:17.9]} 41. Ra8
{[%clk 0:00:27.6]} 41... Bb5 {[%clk 0:00:15.8]} 42. Rxf8+ {[%clk 0:00:26.9]}
42... Kxf8 {[%clk 0:00:16.7]} 43. Rd8+ {[%clk 0:00:25.3]} 43... Ke7 {[%clk
0:00:17.2]} 44. Rc8 {[%clk 0:00:25.8]} 44... Nxa5 {[%clk 0:00:15]} 45. Rc7+
{[%clk 0:00:21.5]} 45... Kd6 {[%clk 0:00:12]} 46. Rxf7 {[%clk 0:00:21.2]} 46...
Qd4 {[%clk 0:00:11.6]} 47. Qxd4+ {[%clk 0:00:19.6]} 47... cxd4 {[%clk
0:00:12.5]} 48. Rxg7 {[%clk 0:00:20.3]} 48... Nc6 {[%clk 0:00:13.2]} 49. Bxc6
{[%clk 0:00:19.2]} 49... Bxc6+ {[%clk 0:00:13]} 50. Kg1 {[%clk 0:00:20.1]} 50...
Be4 {[%clk 0:00:12.4]} 51. Kf2 {[%clk 0:00:17.9]} 51... Bxc2 {[%clk 0:00:12.6]}
52. h4 {[%clk 0:00:17.8]} 52... a5 {[%clk 0:00:12]} 53. Ra7 {[%clk 0:00:17.3]}
53... a4 {[%clk 0:00:12.1]} 54. g5 {[%clk 0:00:16.4]} 54... hxg5 {[%clk
0:00:11.8]} 55. fxg5 {[%clk 0:00:17.3]} 55... Kc5 {[%clk 0:00:10.6]} 56. Rc7+
{[%clk 0:00:16.1]} 56... Kb4 {[%clk 0:00:09.5]} 57. Rxc2 {[%clk 0:00:17]} 57...
Kb3 {[%clk 0:00:09.6]} 58. Rd2 {[%clk 0:00:17.1]} 58... Kc3 {[%clk 0:00:09.7]}
59. Ke2 {[%clk 0:00:17.4]} 59... e5 {[%clk 0:00:08.8]} 60. g6 {[%clk 0:00:17.9]}
60... e4 {[%clk 0:00:09.4]} 61. g7 {[%clk 0:00:18.4]} 61... e3 {[%clk
0:00:09.9]} 62. Rd3+ {[%clk 0:00:18.5]} 62... Kc2 {[%clk 0:00:09.8]} 63. g8=Q
{[%clk 0:00:19.4]} 1-0

[Event "Late-Titled-Tuesday-Blitz-January-30-2024"]
[Site "Chess.com"]
[Date "2024.01.30"]
[Round "5"]
[White "wadsy27"]
[Black "Dedic8"]
[Result "1/2-1/2"]
[WhiteElo "2628"]
[BlackElo "2806"]
[TimeControl "180+1"]
[EndTime "14:57:47 PST"]
[Termination "Game drawn by agreement"]

1. c4 {[%clk 0:02:57.7]} 1... e6 {[%clk 0:03:00.1]} 2. g3 {[%clk 0:02:57]} 2...
d5 {[%clk 0:03:01]} 3. Bg2 {[%clk 0:02:56.7]} 3... Nf6 {[%clk 0:03:01.7]} 4. Nf3
{[%clk 0:02:57]} 4... dxc4 {[%clk 0:03:02.4]} 5. Qa4+ {[%clk 0:02:56.5]} 5...
Nbd7 {[%clk 0:03:03.1]} 6. Qxc4 {[%clk 0:02:55.6]} 6... a6 {[%clk 0:03:03.7]} 7.
Qc2 {[%clk 0:02:55.2]} 7... b5 {[%clk 0:03:04.2]} 8. a4 {[%clk 0:02:52.9]} 8...
Bb7 {[%clk 0:03:01.3]} 9. O-O {[%clk 0:02:48.4]} 9... c5 {[%clk 0:02:57.9]} 10.
Nc3 {[%clk 0:02:28.3]} 10... b4 {[%clk 0:02:53.8]} 11. Nb1 {[%clk 0:02:27.2]}
11... Be7 {[%clk 0:02:52]} 12. d3 {[%clk 0:02:24.3]} 12... O-O {[%clk
0:02:51.4]} 13. Nbd2 {[%clk 0:02:23]} 13... Rc8 {[%clk 0:02:45]} 14. Nc4 {[%clk
0:02:22.2]} 14... Nb8 {[%clk 0:02:40]} 15. Bf4 {[%clk 0:01:59.3]} 15... Nc6
{[%clk 0:02:37.1]} 16. Rac1 {[%clk 0:01:54]} 16... Nd5 {[%clk 0:02:31.8]} 17.
Bd2 {[%clk 0:01:47.7]} 17... f5 {[%clk 0:02:19.6]} 18. Nfe5 {[%clk 0:01:42.7]}
18... Nxe5 {[%clk 0:02:16]} 19. Nxe5 {[%clk 0:01:43.6]} 19... Bf6 {[%clk
0:02:14.7]} 20. Nc4 {[%clk 0:01:36.7]} 20... h5 {[%clk 0:02:04.2]} 21. e4 {[%clk
0:01:35]} 21... Nb6 {[%clk 0:01:57]} 22. Nxb6 {[%clk 0:00:45.7]} 22... Qxb6
{[%clk 0:01:56.9]} 23. Qb3 {[%clk 0:00:39.9]} 23... Kh7 {[%clk 0:01:51.4]} 24.
Be3 {[%clk 0:00:36.2]} 24... g5 {[%clk 0:01:21.8]} 25. Rfe1 {[%clk 0:00:26.6]}
25... h4 {[%clk 0:01:07.8]} 26. exf5 {[%clk 0:00:24.3]} 26... Bxg2 {[%clk
0:01:07.3]} 27. Kxg2 {[%clk 0:00:24.8]} 27... exf5 {[%clk 0:01:05.6]} 28. Qd5
{[%clk 0:00:21]} 28... Qc6 {[%clk 0:00:45.8]} 29. Qxc6 {[%clk 0:00:20.4]} 29...
Rxc6 {[%clk 0:00:46.7]} 30. b3 {[%clk 0:00:19.3]} 30... Bc3 {[%clk 0:00:44.8]}
31. Red1 {[%clk 0:00:16.3]} 31... f4 {[%clk 0:00:35.5]} 32. gxf4 {[%clk
0:00:16.2]} 32... gxf4 {[%clk 0:00:36.4]} 33. Bd2 {[%clk 0:00:16.7]} 33... f3+
{[%clk 0:00:32.8]} 34. Kh3 {[%clk 0:00:16.9]} 34... Bd4 {[%clk 0:00:32.9]} 35.
Be3 {[%clk 0:00:17.1]} 35... Bxe3 {[%clk 0:00:32.3]} 36. fxe3 {[%clk 0:00:17.7]}
36... f2 {[%clk 0:00:31]} 37. Rf1 {[%clk 0:00:17.2]} 37... Rf3+ {[%clk
0:00:26.3]} 38. Kxh4 {[%clk 0:00:17.4]} 38... Rxe3 {[%clk 0:00:20.6]} 39. Rxf2
{[%clk 0:00:17.6]} 39... Rxd3 {[%clk 0:00:21.3]} 40. Rf5 {[%clk 0:00:17.2]}
40... Rh6+ {[%clk 0:00:09.8]} 41. Kg4 {[%clk 0:00:16.5]} 41... Rd4+ {[%clk
0:00:09.8]} 42. Kg5 {[%clk 0:00:15.9]} 42... Rg6+ {[%clk 0:00:07.6]} 43. Kh5
{[%clk 0:00:16.1]} 43... Rh6+ {[%clk 0:00:04.8]} 44. Kg5 {[%clk 0:00:16]} 44...
Rg6+ {[%clk 0:00:02.1]} 45. Kh5 {[%clk 0:00:16.2]} 45... Rg2 {[%clk 0:00:02.3]}
46. Rcxc5 {[%clk 0:00:14.6]} 46... Rxh2+ {[%clk 0:00:02.5]} 47. Kg5 {[%clk
0:00:15]} 47... Rg2+ {[%clk 0:00:03]} 48. Kh5 {[%clk 0:00:15.4]} 48... Rh2+
{[%clk 0:00:02.8]} 49. Kg5 {[%clk 0:00:15.8]} 49... Rg2+ {[%clk 0:00:03]} 50.
Kh5 {[%clk 0:00:15.2]} 50... Rg7 {[%clk 0:00:03.2]} 51. Rc6 {[%clk 0:00:14.7]}
51... Rd3 {[%clk 0:00:03.3]} 52. Rh6+ {[%clk 0:00:12.3]} 52... Kg8 {[%clk
0:00:03.6]} 53. Kh4 {[%clk 0:00:11.9]} 53... Rxb3 {[%clk 0:00:03.1]} 54. Rxa6
{[%clk 0:00:11]} 54... Rb1 {[%clk 0:00:03.2]} 55. Ra8+ {[%clk 0:00:11.2]} 55...
Kh7 {[%clk 0:00:03.3]} 56. Rh5+ {[%clk 0:00:11.9]} 56... Kg6 {[%clk 0:00:03.9]}
57. Ra6+ {[%clk 0:00:12.5]} 57... Kf7 {[%clk 0:00:04.1]} 58. Ra7+ {[%clk
0:00:13.2]} 58... Kg8 {[%clk 0:00:04]} 59. Rxg7+ {[%clk 0:00:13.2]} 59... Kxg7
{[%clk 0:00:04.9]} 60. Rb5 {[%clk 0:00:13.6]} 60... b3 {[%clk 0:00:05.4]} 61.
Kg3 {[%clk 0:00:14.1]} 61... b2 {[%clk 0:00:06]} 62. Kg2 {[%clk 0:00:14.7]}
62... Ra1 {[%clk 0:00:06.3]} 63. Rxb2 {[%clk 0:00:14.7]} 63... Rxa4 {[%clk
0:00:07]} 64. Rb7+ {[%clk 0:00:14.8]} 64... Kg6 {[%clk 0:00:07.2]} 1/2-1/2